Cogmind - Beta 13 @@@ ROGUE MODE // 2024.04.03 @ 18:07:25 Player: SPACEGOAT Result: Destroyed by Y-45 Defender with Heavy Assault Rifle Performance ------------- Evolutions (1) 500 Regions Visited (3) 600 Robots Destroyed (39) 195 Value Destroyed (820) 820 Prototype IDs (5) 100 Alien Tech Used (0) 0 Bonus (0) 0 TOTAL SCORE: 2215 Bonus ------- None Cogmind --------- Core Integrity 0/400 Matter 300/300 Energy 244/265 System Corruption 0% Temperature Cool (28) Movement Treading (240) Ox1 Location -9/Storage Parts ------- > --- POWER (2) -------- Improved Ion Engine > --- PROPULSION (2) --- Light Treads > --- UTILITY (2) ------ Medium Storage Unit Improved Terrain Scanner > --- WEAPON (3) ------- Light EM Pulse Cannon Beam Cannon Mace > --- INVENTORY (10) --- Light Ion Engine Small Matter Pod (50) Terrain Scan Processor Improved Targeting Computer Light Armor Plating Hacking Suite Beam Rifle Light EM Pulse Cannon Mining Laser Peak State ------------ > --- POWER ------------ Light Ion Engine Improved Ion Engine > --- PROPULSION ------- Compact Wheel Compact Wheel > --- UTILITY ---------- Medium Storage Unit Improved Terrain Scanner > --- WEAPON ----------- Light EM Pulse Cannon Beam Cannon Mace > --- INVENTORY -------- Heat Sink Small Matter Pod Terrain Scan Processor Improved Targeting Computer Improved Targeting Computer Improved Targeting Computer Light Armor Plating Beam Rifle Mining Laser [Rating: 15] Favorites ----------- Power Light Ion Engine Engine Light Ion Engine Propulsion Light Treads Treads Light Treads Leg Aluminum Leg Wheel Compact Wheel Hover Unit Hover Unit Flight Unit Flight Unit Utility Medium Storage Unit Device Seismic Detector Storage Medium Storage Unit Weapon Medium Laser Energy Gun Medium Laser Energy Cannon Beam Cannon Ballistic Gun Light Assault Rifle Ballistic Cannon Light Cannon Launcher Grenade Launcher Impact Weapon Mace Build | -11 -10 -9 -9 ------- Run | Yrd Mat Mat Sto Slots Evolved 2 | . . 2 . Power 1 | . . 1 . Propulsion . | . . . . Utility . | . . . . Weapon 1 | . . 1 . Parts Attached 41 | 7 6 24 4 Power 5 | 1 . 4 . Engine 5 | 1 . 4 . Core . | . . . . Reactor . | . . . . Propulsion 13 | 2 2 8 1 Treads 5 | . 1 3 1 Leg 4 | 2 . 2 . Wheel 2 | . . 2 . Hover 1 | . 1 . . Flight 1 | . . 1 . Utility 4 | 2 1 1 . Device 3 | 2 . 1 . Storage 1 | . 1 . . Processor . | . . . . Hackware . | . . . . Protection . | . . . . Artifact . | . . . . Weapon 19 | 2 3 11 3 Energy Gun 5 | 2 . 3 . Energy Cannon 4 | . . 2 2 Ballistic Gun 4 | . 1 3 . Ballistic Cannon 2 | . 1 1 . Launcher 2 | . 1 1 . Special Weapon . | . . . . Impact Weapon 2 | . . 1 1 Slashing Weapon . | . . . . Piercing Weapon . | . . . . Special Melee Weapon . | . . . . Unidentified Prototypes 1 | . . 1 . Parts Lost 13 | . . 10 3 Power 3 | . . 2 1 Propulsion 7 | . . 5 2 Utility . | . . . . Weapon 3 | . . 3 . Highest Loss Streak 4 | . . 4 3 To Critical Strikes . | . . . . Average Slot Usage (%) 87 | . 93 79 94 Engine 14 | . 14 11 20 Treads 7 | . 9 8 . Leg 4 | . 8 3 . Wheel 5 | . . 4 18 Hover 2 | . 3 2 . Device 12 | . 14 11 11 Storage 11 | . 13 11 11 Energy Gun 8 | . 16 6 . Energy Cannon 5 | . . 3 22 Ballistic Gun 3 | . . 8 . Ballistic Cannon 4 | . 5 4 . Launcher 2 | . 5 . . Impact Weapon 3 | . . 3 10 Naked Turns . | . . . . Heaviest Build 32 | 9 20 26 32 Greatest Support 40 | 20 20 40 32 Greatest Overweight (x) 9 | . . 6 9 Average Overweight (x) . | . . . . Largest Inventory Capacity 10 | 5 10 10 10 Average Capacity 9 | 5 9 10 10 Most Carried 10 | 4 10 9 10 Average Carried 7 | 1 9 6 8 Final Capacity 10 | 5 10 10 10 Final Carried 10 | 4 10 9 9 Class Distribution -------------------- 55% | Mutant 27% | Scavenger-Mutant 13% | Gunner 3% | Skirmisher Dominant Class ---------------- Mutant | -10/Materials Gunner | -9/Materials Scavenger-Mutant | -9/Storage Resources | -11 -10 -9 -9 ----------- Run | Yrd Mat Mat Sto Matter Collected 845 | 270 83 402 90 Remotely . | . . . . Salvage Created 1205 | 130 131 538 406 Parts 86 | 16 20 26 24 Haulers Intercepted . | . . . . Recyclers Shooed 2 | . . 1 1 Parts Field Recycled . | . . . . Retrieved Matter . | . . . . Parts Self-Destructed . | . . . . Prevented . | . . . . Kills | -11 -10 -9 -9 ------- Run | Yrd Mat Mat Sto Combat Hostiles Destroyed 24 | 1 8 11 4 Guns 6 | . 1 5 . Cannons 7 | . 1 4 2 AOE 10 | 1 6 2 1 Classes Destroyed 10 | 3 3 4 . Worker 2 | 1 1 . . Builder 3 | . 1 . 2 Tunneler 3 | 3 . . . Recycler 4 | . . 2 2 Operator 2 | . 1 . 1 Watcher 1 | . . 1 . Swarmer 9 | . 6 3 . Grunt 7 | 1 2 2 2 Duelist 1 | . . 1 . Sentry 7 | . . 5 2 Best Kill Streak 4 | 4 4 4 4 Combat Bots Only 4 | 1 3 4 3 Max Kills in Single Turn 3 | 2 3 2 2 Gunslinging . | . . . . Exploded 3 | 1 3 1 1 Melee . | . . . . Uniques/NPCs Destroyed . | . . . . Combat | -11 -10 -9 -9 -------- Run | Yrd Mat Mat Sto Hostile Shots Fired 175 | 1 31 121 22 Missed 38 | . 9 27 2 Damage Taken 1888 | 10 205 1376 297 Core 453 | . 51 281 121 Absorbed by Shields . | . . . . Regen/Repaired (Parts) 78 | . . 78 . Core Remaining (%) 89 | 100 79 . . Volleys Fired 92 | 5 26 44 17 Largest 3 | 2 2 3 3 Hottest 172 | 90 90 115 172 Shots Fired 178 | 10 39 92 37 Gun 85 | 10 18 57 . Cannon 87 | . 17 33 37 Launcher 6 | . 4 2 . Special . | . . . . Kinetic 64 | . 17 47 . Thermal 65 | 5 9 34 17 Explosive 6 | . 4 2 . Electromagnetic 43 | 5 9 9 20 Robot Hit Streak 10 | 4 5 10 10 Robot Miss Streak 4 | 3 4 3 2 Penetration Max . | . . . . Secondary Targets . | . . . . Shots Hit Robots 101 | 5 18 54 24 Core Hits 50 | 5 12 24 9 Critical Kills 2 | . . 1 1 Critical Parts Destroyed . | . . . . Critical Strikes 7 | . 4 2 1 Burn 3 | . 2 1 . Meltdown 1 | . . . 1 Blast 2 | . 2 . . Smash 1 | . . 1 . Melee Attacks 1 | . . 1 . Impact 1 | . . 1 . Slashing . | . . . . Piercing . | . . . . Sneak Attacks 1 | . . 1 . Combat Hostiles . | . . . . Follow-up Attacks . | . . . . Damage Inflicted 2015 | 107 531 833 544 Guns 493 | 62 89 342 . Cannons 997 | . 172 380 445 Explosions 477 | 45 270 63 99 Melee 48 | . . 48 . Ramming . | . . . . Kinetic 491 | . 172 319 . Thermal 777 | 57 89 361 270 Explosive 333 | . 270 63 . Electromagnetic 366 | 50 . 42 274 Impact 48 | . . 48 . Slashing . | . . . . Piercing . | . . . . Highest Corruption . | . . . . Average Corruption . | . . . . Corruption Purged . | . . . . Corruption Blocked . | . . . . Overload Shots . | . . . . Overflow Damage 46 | . 33 . 13 Projectiles 13 | . . . 13 Explosions 33 | . 33 . . Melee . | . . . . Knockbacks 5 | . 4 1 . Impact . | . . . . Kinetic 5 | . 4 1 . Secondary . | . . . . Self-Inflicted Damage 49 | . . 39 10 Shots 2 | . . 1 1 Rammed . | . . . . Targets Rammed . | . . . . Kicked . | . . . . Crushed . | . . . . Highest Temperature 385 | 90 144 244 385 Average Temperature 96 | 37 37 83 156 Received Heat Transfer 507 | 6 60 333 108 Effects 4 | . . . 4 Shutdowns 2 | . . . 2 Energy Bleed 1 | . . . 1 Interference 1 | . . . 1 Siege Activations . | . . . . Robots Corrupted . | . . . . Combat Hostiles . | . . . . Parts Fried . | . . . . Impact Corruptions . | . . . . Robots Melted 1 | . . . 1 Combat Hostiles 1 | . . . 1 Parts Melted 3 | . . . 3 Heat Transferred 1889 | 87 407 925 470 Parts Sabotaged . | . . . . Parts Stolen . | . . . . Parts Stripped . | . . . . Power Chain Reactions 3 | 1 . . 2 Alert | -11 -10 -9 -9 ------- Run | Yrd Mat Mat Sto Peak Influence 294 | 40 191 294 261 Initial 80 | . 26 80 77 Average 129 | 14 116 159 136 Maximum Alert Level 1 | . . 1 1 Low Security (%) 84 | 100 100 68 83 Level 1 15 | . . 31 16 Level 2 . | . . . . Level 3 . | . . . . Level 4 . | . . . . Level 5 . | . . . . High Security . | . . . . Max Security . | . . . . Squads Dispatched 6 | . 3 1 2 Investigation 2 | . 1 . 1 Extermination . | . . . . Reinforcement 4 | . 2 1 1 Assault . | . . . . Garrison . | . . . . Intercept . | . . . . Searches Triggered . | . . . . Construction Impeded . | . . . . Haulers Reinforced . | . . . . Active Scanning Responses . | . . . . Cargo Convoy Interrupts . | . . . . Stealth | -11 -10 -9 -9 --------- Run | Yrd Mat Mat Sto Distress Signals 2 | . . 2 . Communications Jammed . | . . . . Distress Signals . | . . . . Times Spotted 38 | 1 15 15 7 Peak Tracking Total 6 | . 3 6 3 Tactical Retreats 1 | . 1 . . Traps | -11 -10 -9 -9 ------- Run | Yrd Mat Mat Sto Traps Triggered 1 | . 1 . . Indirectly . | . . . . Trap Hack Attempts . | . . . . Triggered . | . . . . Disarmed 6 | . . . 6 Reprogrammed . | . . . . Reused . | . . . . Traps Extracted . | . . . . Installed . | . . . . Triggered . | . . . . Machines | -11 -10 -9 -9 ---------- Run | Yrd Mat Mat Sto Machines Disabled 2 | . 1 . 1 Max in Single Turn 1 | . 1 . 1 Machines Repaired . | . . . . Machines Dismantled . | . . . . Machines Sabotaged . | . . . . Overloaded Fab Kills . | . . . . Hacking | -11 -10 -9 -9 --------- Run | Yrd Mat Mat Sto Machines Accessed 8 | . 2 1 5 Terminals 6 | . 2 . 4 Fabricators . | . . . . Repair Stations 1 | . . 1 . Recycling Units 1 | . . . 1 Scanalyzers . | . . . . Garrison Access . | . . . . Total Hacks 22 | . 5 2 15 Successful 15 | . 4 2 9 Failed 6 | . . . 6 Catastrophic . | . . . . Database Lockouts 1 | . 1 . . Manual . | . . . . Terminals 15 | . 5 . 10 Fabricators . | . . . . Repair Stations 2 | . . 2 . Recycling Units 5 | . . . 5 Scanalyzers . | . . . . Garrison Access . | . . . . Terminal Hacks 8 | . 4 . 4 Record 3 | . 3 . . Prototype ID Bank 2 | . 1 . 1 Branch Access Points 1 | . . . 1 Alert Level 1 | . . . 1 Disarm Traps 1 | . . . 1 Fabricator Hacks . | . . . . Repair Station Hacks 2 | . . 2 . Scan Component 1 | . . 1 . Repair 1 | . . 1 . Recycling Unit Hacks 5 | . . . 5 Recycle Component 2 | . . . 2 Process 1 | . . . 1 Report Inventory 2 | . . . 2 Scanalyzer . | . . . . Garrison Access Hacks . | . . . . Unauthorized Hacks . | . . . . Terminals . | . . . . Fabricators . | . . . . Repair Stations . | . . . . Recycling Units . | . . . . Scanalyzers . | . . . . Garrison Access . | . . . . Data Cores Recovered . | . . . . Used . | . . . . Hacking Detections 6 | . 2 . 4 Full Trace Events 2 | . . . 2 Feedback Events . | . . . . Feedback Blocked . | . . . . Robot Schematics Acquired . | . . . . Robots Built . | . . . . Authchips . | . . . . Time . | . . . . Total Robot Build Rating . | . . . . Part Schematics Acquired . | . . . . Parts Built . | . . . . Authchips . | . . . . Time . | . . . . Total Part Build Rating . | . . . . Parts Repaired 1 | . . 1 . Time 13 | . . 13 . Parts Recycled 2 | . . . 2 Recycled Matter 19 | . . . 19 Retrieved Matter . | . . . . Retrieved Components . | . . . . Parts Scanalyzed . | . . . . Part Schematics Acquired . | . . . . Parts Damaged . | . . . . Bothacking | -11 -10 -9 -9 ------------ Run | Yrd Mat Mat Sto Used RIF Installer . | . . . . Robots Hacked . | . . . . Non-combat . | . . . . Combat . | . . . . Robot Hacks Applied . | . . . . Relay Couplers Released . | . . . . Fabnet Peak Effective % . | . . . . Robots Rewired . | . . . . Allies Hacked . | . . . . Hacks Repelled . | . . . . Allies | -11 -10 -9 -9 -------- Run | Yrd Mat Mat Sto Total Allies . | . . . . Largest Group . | . . . . Highest-Rated Group . | . . . . Highest-Rated Ally . | . . . . Total Orders . | . . . . Ally Attacks . | . . . . Total Damage . | . . . . Kills . | . . . . Allies Corrupted . | . . . . Allies Melted . | . . . . Intel | -11 -10 -9 -9 ------- Run | Yrd Mat Mat Sto Robot Analysis Total . | . . . . Derelict Logs Recovered . | . . . . Drone Launches . | . . . . Drone Recoveries . | . . . . Exploration | -11 -10 -9 -9 ------------- Run | Yrd Mat Mat Sto Turns Passed 1543 | 117 540 613 273 Spaces Moved 858 | 81 312 282 183 Core 29 | 18 . 8 3 Treads 352 | . 210 139 3 Legs 210 | 63 102 45 . Wheels 266 | . . 89 177 Hover . | . . . . Flight 1 | . . 1 . Fastest Speed 50 | 50 120 100 100 Average Speed 134 | 104 146 146 108 Slowest Speed 500 | 120 160 360 500 Overloaded Moves . | . . . . Propulsion Burnouts . | . . . . Robots Hopped . | . . . . Cave-ins Triggered . | . . . . Exploration Rate (%) 29 | 6 58 27 25 Regions Visited 3 Branch Regions 1 Pre-discovered Areas . | . . . . Known Exits Taken . | . . . . Unknown Exits Taken 3 | 1 1 1 . Scrap Searched . | . . . . Spaces Dug . | . . . . Terrain Destroyed 57 | . 34 11 12 Melee . | . . . . Projectile . | . . . . AOE 57 | . 34 11 12 Terrain Rammed . | . . . . Walls Destroyed . | . . . . Machines Disabled . | . . . . Actions | -11 -10 -9 -9 --------- Run | Yrd Mat Mat Sto Total 1092 | 103 354 409 226 Wait 41 | . . 30 11 Move 855 | 80 311 281 183 Hop . | . . . . Pick Up 45 | 11 8 19 7 Fast Attach 1 | . 1 . . Attach 31 | 7 1 20 3 Detach 4 | . . 3 1 Swap 9 | . 4 4 1 Drop 13 | . 3 7 3 Fire 92 | 5 26 44 17 Melee 1 | . . 1 . Ram . | . . . . Kick . | . . . . Crush . | . . . . Escape Stasis . | . . . . Rewire . | . . . . Trap . | . . . . Miscellaneous . | . . . . Route ------- -11/Scrapyard -10/Materials (discovered 3 exits: *Mat x2 / [*Min]) -9/Materials -9/Storage (discovered 1 exit: Rec) History --------- Turn | Location | Event 2 | -11/Scrapyard | Met Revision 17 70 | -11/Scrapyard | Discovered new exit (range 8) 118 | -11/Scrapyard | Entered Materials 158 | -10/Materials | Central database locked down 232 | -10/Materials | Discovered new exit (range 16) 251 | -10/Materials | Discovered new exit (range 16) 313 | -10/Materials | Build established: Mutant 615 | -10/Materials | Discovered new exit (range 10) 658 | -10/Materials | Entered another Materials area 658 | -9/Materials | Evolved 2 slots: Power x1, Weapon x1 875 | -9/Materials | Lost 4 parts (1p2n1w) 938 | -9/Materials | Repaired Lgt. Assault Rifle 1036 | -9/Materials | Lost 3 parts (2n1w) 1155 | -9/Materials | Core integrity fell below 50% 1219 | -9/Materials | Discovered new exit (range 12) 1271 | -9/Materials | Entered Storage 1395 | -9/Storage | Build established: Scavenger-Mutant 1404 | -9/Storage | Identified exit to Recycling 1510 | -9/Storage | Core integrity fell below 20% 1540 | -9/Storage | Lost 3 parts (1p2n) 1544 | -9/Storage | Destroyed by Y-45 Defender with Heavy Assault Rifle Last Messages --------------- R-06 Scavenger collects Corrupted Sml. Laser. Overheating: Energy bleed (-22). R-06 Scavenger collects Aluminum Leg. R-06 Scavenger collects Beam Rifle. Power failure, Imp. Ion Engine shutdown. Y-45 Defender destroyed. Com. Wheel melted. R-06 Scavenger destroyed. K-01 Serf collects debris. Overheating: System interference. Mace temporarily disabled. K-01 Serf collects debris. Acquired Lgt. Treads. K-01 Serf collects debris. Acquired 10 matter. K-01 Serf collects debris. Acquired Corrupted Lgt. Treads. K-01 Serf collects debris. Dropped Corrupted Lgt. Treads. Critical hit (Burn: +37). Map ----- +----------------------------------------------------+ | ?????????????????????????????????????????????????? | | ?????????????????????????????????????????????????? | | ?????????????????????????????????????????????????? | | ?????????????????????????????????????????????????? | | ?????????????????????????????????????????????????? | | ?????????????????????????????????????????????????? | | ?????????????????????????????????????????????????? | | ?????????????????????????????????????????????????? | | ?????????????????????????????????????????????????? | | ?????????????????????????????????????????????????? | | ?????????????????????????????????????????????????? | | ?????????????????????????????????????????????????? | | ??????????????????#??#???????????????????????????? | | ?????????????????????????????????????????????????? | | ???????????????????????#####?????????????????????? | | ???????????????????????" #?????????????????????? | | ???????????????????????" #?????????????????????? | | ???????????????????????" #?????????????????????? | | ??????????????????????? #?????????????????????? | | ????????#???? ???#?????? [#?????????????????????? | | ?????????#?????????? ??? ##????????????????????? | | ???????????#? ?????????? #????????????????????? | | ???????????????????????? #?????????????????????? | | ?????????? ??????#????###/##?? ??????????????????? | | ????????????# ########[=a ##a#####??????????????? | | ???#???? a [=%%k@ ????????? | | ????????????# ![% !*= Y ????????? | | ??????????? ########+##!= #######+## ????????? | | ????????????## ######?????????????????????? | | ?????????????# #?#??#?????????????????????? | | ??#??????????# """" #??????????????????????????? | | #???????? ? ?#%"??" ##???#?????????????????????? | | #???#??##????#="??" #?#????????????????????????? | | ???????#??#??#!" " #?#?#??#???????????????????? | | ##########???# "??" ##?????????????????????????? | | ##### """" #??????#???????????????????? | | + #??????????????????????????? | | ##############????????????????>?????????? | | #### %##?# ####?????????????? ????????? | | #### !!|### ## ######???????#??????????? | | + =%"#?# + ###????????????????? | | ####"="### # #T#????????????????? | | #??#" ""######+##### + "????????????????? | | #??#"=% ###????????????????? | | #??##"""#############"T"####??????????????????? | | #??######?#?????????#"""#?????????????????????? | | #??????????#????????#####?????????????????????? | | #?????????????#???????????????????????????????? | | ####?????????????????????????????????????????????? | | | +----------------------------------------------------+ Best States ------------- Heat Dissipation 28 Energy Generation 17 Energy Capacity 290 Matter Stores 300 Matter Capacity 300 Sight Range 16 Terrain Scan Range 16 Terrain Scan Density 10 Evasion (%) 55 Recoil Reduction 2 Item Schematics ----------------- None Robot Schematics ------------------ None Fabricated ------------ Nothing Alien Tech Used ----------------- None Achievements -------------- It's Just You Let's See Who's Tougher Challenges ------------ None Game ------ Seed FactoryVisualCompressor Manual? 0 Play Time 00:38:56 Cumulative 4.2 hours Start 2024.04.03 @ 17:27:03 End 2024.04.03 @ 18:07:25 Sessions 1 Manual Loads 0 Difficulty Rogue Special Mode None Game No. 3 Rogue 3 Adventurer 0 Explorer 0 Win Type - Total 0 Types 0/0/0/0/0/0/0/0/0 Lore% 1 Gallery% 6 Achievement% 5 Wizard Run 0 Options --------- Layout 1 ASCII 0 Keyboard 0 Movement Mouse Keybinds 0 Fullscreen 1 Font 24/Smallcaps Map View 50x35 Zoom Use 0% Tactical HUD 0 Map Filters NONE Filters NONE Steam 1 RUN: cd4df745-c1d0-4f13-ad8e-a557fd81a891